[Event "IM Marmaris Karia X 2019"]
[Site "Marmaris"]
[Date "2019.09.02"]
[Round "5.5"]
[White "Altun, Arda"]
[Black "Darban, Morteza"]
[Result "0-1"]
[ECO "B03"]
[WhiteElo "2151"]
[BlackElo "2283"]
[Annotator "RC"]
[PlyCount "88"]
[EventDate "2019.09.02"]
[EventType "schev"]
[EventCountry "TUR"]
[SourceTitle "playchess.com"]
[Source "ChessBase"]
[SourceQuality "1"]
[TimeControl "5400+30"]

1. e4 {[%emt 0:01:30]} Nf6 {[%emt 0:00:30]} 2. e5 {[%emt 0:00:00]} Nd5 {[%emt 0:00:00]} 3. c4 {[%emt 0:00:00]} Nb6 {[%emt 0:00:00]} 4. d4 {[%emt 0:00:00]} d6 {[%emt 0:00:30]} 5. exd6 {[%emt 0:00:00]} cxd6 {[%emt 0:00:00]} 6. Nc3 {[%emt 0:00:30]} g6 {[%emt 0:01:00]} 7. Be3 {[%emt 0:00:00]} Bg7 {[%emt 0:00:30]} 8. Rc1 {[%emt 0:00:00]} O-O {[%emt 0:00:00]} 9. b3 {[%emt 0:00:30]} e6 {[%emt 0:02:00]} 10. Nf3 {[%emt 0:02:30]} Nc6 {[%emt 0:00:30]} 11. Be2 {[%emt 0:01:30]} Ne7 {[%emt 0:00:00]} 12. O-O {[%emt 0:05:30]} Bd7 {[%emt 0:00:00]} 13. Qd2 {[%emt 0:09:30]} Bc6 {[%emt 0:00:00]} 14. Bh6 {[%emt 0:03:30]} Bxh6 {[%emt 0:12:00]} 15. Qxh6 {[%emt 0:00:30]} Bxf3 {[%emt 0:00:30]} 16. Bxf3 {[%emt 0:00:30]} d5 {[%emt 0:00:00]} 17. c5 {[%emt 0:02:30]} Nbc8 {[%emt 0:00:00]} 18. Rfd1 {[%emt 0:05:30]} Nc6 {[%emt 0:00:30]} 19. Ne2 {[%emt 0:07:30]} Qf6 {[%emt 0:00:30]} 20. Qe3 {[%emt 0:07:30]} N8e7 {[%emt 0:20:30]} 21. g4 {[%emt 0:01:30]} g5 {[%emt 0:05:30]} 22. Ng3 {[%emt 0:02:30]} Qg6 {[%emt 0:21:30]} 23. Be2 {[%emt 0:01:30]} f5 {[%emt 0:01:30]} 24. gxf5 {[%emt 0:10:30]} Nxf5 {[%emt 0:00:30]} 25. Nxf5 {[%emt 0:00:30]} exf5 {[%emt 0:01:30]} 26. Qf3 {[%emt 0:17:30]} Rad8 {[%emt 0:03:30]} 27. b4 {[%emt 0:02:13]} a6 {[%emt 0:01:30]} 28. h4 {[%emt 0:06:51]} h6 {[%emt 0:02:30]} 29. hxg5 {[%emt 0:00:18]} hxg5 {[%emt 0:00:00]} 30. Kg2 {[%emt 0:00:42]} Rfe8 {[%emt 0:04:00]} 31. Bd3 {[%emt 0:04:21]} Nxd4 {[%emt 0:01:30]} 32. Qh3 {[%emt 0:00:50]} g4 {[%emt 0:22:36]} 33. Qh2 {[%emt 0:01:42]} Nf3 {[%emt 0:00:27]} 34. Qf4 {[%emt 0:00:30]} Re5 {[%emt 0:00:54]} 35. Rh1 {[%emt 0:02:27]} Kg7 {[%emt 0:00:09]} 36. Kg3 {[%emt 0:01:28]} Rde8 {[%emt 0:00:26]} 37. a4 {[%emt 0:00:48]} Ng5 {[%emt 0:00:40]} 38. Rcg1 {[%emt 0:01:50]} Qf6 {[%emt 0:00:36]} 39. Qd2 {[%emt 0:01:59]} Nf3 {[%emt 0:00:23]} 40. Qf4 {[%emt 0:00:17]} Nxg1 {[%emt 0:00:09]} 41. Rxg1 {[%emt 0:00:05]} Rh8 {[%emt 0:00:13]} 42. Kg2 {[%emt 0:00:08]} Rh3 {[%emt 0:00:23]} 43. Bb1 {[%emt 0:00:13]} Rf3 {[%emt 0:00:35]} 44. Qd4 {[%emt 0:00:20]} Re2 {[%emt 0:00:12]} 0-1

[Event "IM Marmaris Karia X 2019"]
[Site "Marmaris"]
[Date "2019.09.02"]
[Round "6.4"]
[White "Darban, Morteza"]
[Black "Sahin, Ozgun"]
[Result "0-1"]
[ECO "B10"]
[WhiteElo "2283"]
[BlackElo "2205"]
[Annotator "NA"]
[PlyCount "68"]
[EventDate "2019.09.02"]
[EventType "schev"]
[EventCountry "TUR"]
[SourceTitle "playchess.com"]
[Source "ChessBase"]
[SourceQuality "1"]
[TimeControl "5400+30"]

1. e4 c5 2. Nf3 g6 3. c3 Bg7 4. d4 cxd4 5. cxd4 d5 6. exd5 Nf6 7. Bb5+ Nbd7 8. Nc3 O-O 9. d6 exd6 10. O-O a6 11. Bd3 b5 12. Bf4 Nb6 13. Rc1 Bb7 14. Re1 Nc4 15. b3 Nb2 16. Qe2 Nxd3 17. Qxd3 b4 18. Na4 Nd5 19. Bd2 Qd7 20. h3 Qb5 21. Nb2 Rfc8 22. Rc4 Qa5 23. a4 Qd8 24. Rxc8 Rxc8 25. Nc4 Nc3 26. Rc1 Bxf3 27. gxf3 Bxd4 28. Re1 Qh4 29. Be3 Bxe3 30. Rxe3 Qxh3 31. Re1 d5 32. Ne5 Qe6 33. Qd4 f6 34. Nd3 Qxe1+ 0-1

[Event "IM Marmaris Karia X 2019"]
[Site "Marmaris"]
[Date "2019.09.02"]
[Round "6.5"]
[White "Rakhmangulova, Anastasiya"]
[Black "Altun, Arda"]
[Result "1-0"]
[ECO "D14"]
[WhiteElo "2204"]
[BlackElo "2151"]
[Annotator "NA"]
[PlyCount "85"]
[EventDate "2019.09.02"]
[EventType "schev"]
[EventCountry "TUR"]
[SourceTitle "playchess.com"]
[Source "ChessBase"]
[SourceQuality "1"]
[TimeControl "5400+30"]

1. d4 d5 2. Nf3 Nf6 3. c4 c6 4. cxd5 cxd5 5. Nc3 Nc6 6. Bf4 Bf5 7. Qb3 Na5 8. Qa4+ Bd7 9. Qc2 e6 10. e3 Rc8 11. Bd3 Be7 12. O-O b5 13. a3 a6 14. Ne5 Bc6 15. Rfc1 Bb7 16. Qd1 Nc4 {[%emt 0:54:00]} 17. Qe2 {[%emt 1:27:37]} O-O {[%emt 0:00:30]} 18. Bg3 {[%emt 0:00:30]} Qb6 {[%emt 0:00:30]} 19. f4 {[%emt 0:00:30]} Rc7 {[%emt 0:01:30]} 20. f5 {[%emt 0:00:30]} Bd6 {[%emt 0:00:30]} 21. Bxc4 {[%emt 0:00:30]} dxc4 {[%emt 0:01:30]} 22. fxe6 {[%emt 0:01:44]} fxe6 {[%emt 0:05:30]} 23. Rf1 {[%emt 0:00:30]} Rcc8 {[%emt 0:00:30]} 24. Rxf6 {[%emt 0:00:57]} gxf6 {[%emt 0:00:30]} 25. Qg4+ {[%emt 0:00:53]} Kh8 {[%emt 0:00:30]} 26. Qxe6 {[%emt 0:02:18]} Qc7 {[%emt 0:00:30]} 27. Ng6+ {[%emt 0:00:49]} hxg6 {[%emt 0:00:30]} 28. Bxd6 {[%emt 0:01:26]} Qc6 {[%emt 0:00:30]} 29. d5 {[%emt 0:00:18]} Qb6 {[%emt 0:00:30]} 30. Qh3+ {[%emt 0:00:30]} Kg7 {[%emt 0:00:30]} 31. Bxf8+ {[%emt 0:00:30]} Rxf8 {[%emt 0:00:30]} 32. Rd1 {[%emt 0:00:47]} Re8 {[%emt 0:00:30]} 33. Rd4 {[%emt 0:00:41]} f5 {[%emt 0:00:30]} 34. Qg3 {[%emt 0:00:49]} b4 {[%emt 0:00:00]} 35. axb4 {[%emt 0:02:00]} Qxb4 {[%emt 0:00:00]} 36. Qc7+ {[%emt 0:00:00]} Kg8 {[%emt 0:00:00]} 37. Rh4 {[%emt 0:00:00]} Qe7 {[%emt 0:00:00]} 38. Qxe7 {[%emt 0:00:51]} Rxe7 {[%emt 0:00:00]} 39. Rxc4 {[%emt 0:01:03]} Rxe3 {[%emt 0:00:00]} 40. Rc7 {[%emt 0:00:22]} Bxd5 {[%emt 0:00:00]} 41. Nxd5 {[%emt 0:01:04]} Rd3 {[%emt 0:00:00]} 42. Ne7+ {[%emt 0:00:30]} Kf7 {[%emt 0:00:30]} 43. Rc3 {[%emt 0:00:30]} 1-0

[Event "IM Marmaris Karia X 2019"]
[Site "Marmaris"]
[Date "2019.09.02"]
[Round "7.3"]
[White "Caglar, Sila"]
[Black "Darban, Morteza"]
[Result "0-1"]
[ECO "D40"]
[WhiteElo "2242"]
[BlackElo "2283"]
[Annotator "NA"]
[PlyCount "68"]
[EventDate "2019.09.02"]
[EventType "schev"]
[EventCountry "TUR"]
[SourceTitle "playchess.com"]
[Source "ChessBase"]
[SourceQuality "1"]
[TimeControl "5400+30"]

1. e4 {[%emt 0:00:30]} e6 {[%emt 0:00:30]} 2. d4 {[%emt 0:00:00]} d5 {[%emt 0:00:30]} 3. Nd2 {[%emt 0:00:00]} Nf6 {[%emt 0:00:30]} 4. Bd3 {[%emt 0:00:30]} c5 {[%emt 0:00:30]} 5. c3 {[%emt 0:00:00]} cxd4 {[%emt 0:00:30]} 6. cxd4 {[%emt 0:00:00]} dxe4 {[%emt 0:00:00]} 7. Nxe4 {[%emt 0:00:30]} Be7 {[%emt 0:00:00]} 8. Nf3 {[%emt 0:00:30]} O-O {[%emt 0:00:30]} 9. O-O {[%emt 0:02:30]} Nc6 {[%emt 0:00:30]} 10. Nc3 {[%emt 0:01:30]} a6 {[%emt 0:03:30]} 11. a3 {[%emt 0:08:30]} b5 $11 {[%emt 0:02:30]} 12. b4 {[%emt 0:02:30]} Bb7 {[%emt 0:02:30]} 13. Be3 {[%emt 0:00:30]} Rc8 {[%emt 0:09:30]} 14. Rc1 {[%emt 0:02:30]} Nb8 {[%emt 0:00:30]} 15. Bb1 {[%emt 0:07:30]} Nbd7 {[%emt 0:31:30]} 16. Bg5 {[%emt 0:13:30]} Nb6 {[%emt 0:04:30]} 17. Qd3 {[%emt 0:00:30]} g6 {[%emt 0:00:30]} 18. Ne5 {[%emt 0:10:30]} Nc4 {[%emt 0:17:30]} 19. Nxc4 {[%emt 0:01:30]} Rxc4 {[%emt 0:00:30]} 20. Be3 {[%emt 0:00:30]} Qd6 {[%emt 0:01:30]} 21. f3 {[%emt 0:01:30]} Rfc8 {[%emt 0:03:05]} 22. Ne4 {[%emt 0:04:30]} Nxe4 {[%emt 0:03:30]} 23. fxe4 {[%emt 0:00:00]} f5 {[%emt 0:08:17]} 24. exf5 {[%emt 0:03:00]} gxf5 {[%emt 0:00:02]} 25. Ba2 {[%emt 0:08:30]} Be4 {[%emt 0:01:34]} 26. Qd1 {[%emt 0:02:30]} Rxc1 {[%emt 0:01:13]} 27. Bxc1 {[%emt 0:00:00]} Rc2 {[%emt 0:01:31]} 28. Rf2 {[%emt 0:00:00]} Rxf2 {[%emt 0:00:32]} 29. Kxf2 {[%emt 0:00:30]} Qxh2 {[%emt 0:00:11]} 30. Bxe6+ {[%emt 0:02:30]} Kg7 {[%emt 0:01:34]} 31. d5 {[%emt 0:05:30]} Qxg2+ {[%emt 0:01:08]} 32. Ke3 {[%emt 0:00:30]} Qg3+ {[%emt 0:00:36]} 33. Kd4 {[%emt 0:00:30]} Bf6+ {[%emt 0:00:08]} 34. Kc5 {[%emt 0:00:00]} Qc7# {[%emt 0:00:08]} 0-1

[Event "IM Marmaris Karia X 2019"]
[Site "Marmaris"]
[Date "2019.09.02"]
[Round "7.4"]
[White "Sahin, Ozgun"]
[Black "Rakhmangulova, Anastasiya"]
[Result "0-1"]
[ECO "B01"]
[WhiteElo "2205"]
[BlackElo "2204"]
[Annotator "ChessBase"]
[PlyCount "131"]
[EventDate "2019.09.02"]
[EventType "schev"]
[EventCountry "TUR"]
[SourceTitle "playchess.com"]
[Source "ChessBase"]
[SourceQuality "1"]
[TimeControl "5400+30"]

1. e4 {[%emt 0:00:30]} d5 {[%emt 0:00:30]} 2. exd5 {[%emt 0:00:00]} Qxd5 {[%emt 0:00:00]} 3. Nc3 {[%emt 0:00:00]} Qd6 {[%emt 0:00:00]} 4. Nf3 {[%emt 0:00:00]} Nf6 {[%emt 0:00:00]} 5. d4 {[%emt 0:00:00]} g6 {[%emt 0:01:00]} 6. Ne5 {[%emt 0:00:30]} Bg7 {[%emt 0:00:30]} 7. f4 {[%emt 0:01:30]} O-O {[%emt 0:02:30]} 8. g4 {[%emt 0:10:30]} c5 {[%emt 0:18:30]} 9. d5 {[%emt 0:06:30]} Nbd7 {[%emt 0:05:30]} 10. Nc4 {[%emt 0:00:30]} Qb8 {[%emt 0:00:30]} 11. Qf3 {[%emt 0:11:30]} Nb6 {[%emt 0:23:30]} 12. Ne3 {[%emt 0:00:30]} e6 {[%emt 0:07:30]} 13. dxe6 {[%emt 0:00:30]} fxe6 {[%emt 0:00:30]} 14. Bg2 {[%emt 0:02:30]} Nfd5 {[%emt 0:09:30]} 15. Nexd5 {[%emt 0:04:30]} exd5 {[%emt 0:00:30]} 16. O-O {[%emt 0:01:30]} Be6 {[%emt 0:00:30]} 17. f5 {[%emt 0:14:30]} gxf5 {[%emt 0:01:30]} 18. gxf5 {[%emt 0:01:30]} Rxf5 {[%emt 0:06:59]} 19. Bf4 {[%emt 0:00:30]} Qe8 {[%emt 0:01:29]} 20. Rae1 {[%emt 0:01:30]} Qg6 {[%emt 0:00:13]} 21. Kh1 {[%emt 0:03:30]} Raf8 {[%emt 0:01:21]} 22. Ne2 {[%emt 0:06:30]} R5f7 {[%emt 0:03:45]} 23. Rf2 {[%emt 0:10:30]} Bg4 {[%emt 0:05:36]} 24. Qg3 {[%emt 0:00:00]} Re8 {[%emt 0:00:04]} 25. Bc7 {[%emt 0:08:04]} Rxf2 {[%emt 0:05:29]} 26. Qxf2 {[%emt 0:00:03]} Qe6 {[%emt 0:01:42]} 27. Bf3 {[%emt 0:08:11]} Bxf3+ {[%emt 0:01:58]} 28. Qxf3 {[%emt 0:00:02]} Nc4 {[%emt 0:00:34]} 29. Bg3 {[%emt 0:00:52]} Nd2 {[%emt 0:01:11]} 30. Qd3 {[%emt 0:00:54]} Qe4+ {[%emt 0:01:11]} 31. Qxe4 {[%emt 0:00:05]} Nxe4 {[%emt 0:00:06]} 32. Rd1 {[%emt 0:00:56]} d4 {[%emt 0:00:39]} 33. Kg2 {[%emt 0:01:20]} Nd6 {[%emt 0:00:15]} 34. Nf4 {[%emt 0:02:18]} Nc4 {[%emt 0:00:11]} 35. Kf3 {[%emt 0:00:19]} Re3+ {[%emt 0:01:19]} 36. Kg4 {[%emt 0:00:11]} Re7 {[%emt 0:00:06]} 37. Rb1 {[%emt 0:01:55]} Ne3+ {[%emt 0:00:44]} 38. Kf3 {[%emt 0:00:01]} c4 {[%emt 0:00:35]} 39. Rc1 {[%emt 0:01:01]} b5 {[%emt 0:00:52]} 40. b3 {[%emt 0:01:08]} Nf5 {[%emt 0:00:04]} 41. Bf2 {[%emt 0:00:52]} Rf7 {[%emt 0:00:10]} 42. bxc4 {[%emt 0:01:24]} bxc4 {[%emt 0:00:02]} 43. Rb1 {[%emt 0:00:06]} h6 {[%emt 0:00:43]} 44. Rb8+ {[%emt 0:00:29]} Kh7 {[%emt 0:00:04]} 45. Rc8 {[%emt 0:01:11]} Be5 {[%emt 0:01:28]} 46. Bg3 {[%emt 0:00:24]} Ne7 {[%emt 0:00:35]} 47. Rxc4 {[%emt 0:01:19]} Ng6 {[%emt 0:00:03]} 48. Ke4 {[%emt 0:00:05]} Bxf4 {[%emt 0:00:04]} 49. Rxd4 {[%emt 0:00:08]} Re7+ {[%emt 0:00:51]} 50. Kf5 {[%emt 0:00:29]} Re5+ {[%emt 0:01:14]} 51. Kg4 {[%emt 0:00:05]} h5+ {[%emt 0:00:07]} 52. Kf3 {[%emt 0:01:17]} Bxg3 {[%emt 0:00:03]} 53. hxg3 {[%emt 0:00:03]} Rc5 {[%emt 0:00:48]} 54. Rd7+ {[%emt 0:00:09]} Kh6 {[%emt 0:00:04]} 55. Rxa7 {[%emt 0:00:09]} Rxc2 {[%emt 0:00:03]} 56. Ra5 {[%emt 0:00:39]} Rc3+ {[%emt 0:00:40]} 57. Kg2 {[%emt 0:00:06]} Ne7 {[%emt 0:01:04]} 58. Kh3 {[%emt 0:01:44]} Kg6 {[%emt 0:00:24]} 59. Ra8 {[%emt 0:00:51]} Kg5 {[%emt 0:01:03]} 60. Re8 {[%emt 0:00:19]} Ng6 {[%emt 0:00:05]} 61. Kg2 {[%emt 0:01:15]} Rc2+ {[%emt 0:00:02]} 62. Kf3 {[%emt 0:00:03]} Rxa2 {[%emt 0:00:03]} 63. Re3 {[%emt 0:00:30]} Kf5 {[%emt 0:00:25]} 64. Rb3 {[%emt 0:00:44]} Ne5+ {[%emt 0:00:05]} 65. Ke3 {[%emt 0:00:03]} Ra3 {[%emt 0:00:10]} 66. Kd4 {[%emt 0:01:28]} 0-1

[Event "IM Marmaris Karia X 2019"]
[Site "Marmaris"]
[Date "2019.09.02"]
[Round "8.3"]
[White "Rakhmangulova, Anastasiya"]
[Black "Caglar, Sila"]
[Result "1/2-1/2"]
[ECO "E06"]
[WhiteElo "2204"]
[BlackElo "2242"]
[Annotator "ChessBase"]
[PlyCount "100"]
[EventDate "2019.09.02"]
[EventType "schev"]
[EventCountry "TUR"]
[SourceTitle "playchess.com"]
[Source "ChessBase"]
[SourceQuality "1"]
[TimeControl "5400+30"]

1. d4 {[%emt 0:00:30]} Nf6 {[%emt 0:00:30]} 2. Nf3 {[%emt 0:00:00]} e6 {[%emt 0:00:00]} 3. c4 {[%emt 0:00:00]} d5 {[%emt 0:01:00]} 4. g3 {[%emt 0:00:00]} Be7 {[%emt 0:00:00]} 5. Bg2 {[%emt 0:00:00]} O-O {[%emt 0:00:00]} 6. O-O {[%emt 0:00:30]} c6 {[%emt 0:01:30]} 7. Nc3 {[%emt 0:00:30]} b6 {[%emt 0:01:30]} 8. Ne5 {[%emt 0:06:30]} Bb7 {[%emt 0:00:30]} 9. cxd5 {[%emt 0:00:30]} cxd5 {[%emt 0:01:30]} 10. Qa4 {[%emt 0:00:30]} a6 {[%emt 0:07:30]} 11. f4 {[%emt 0:17:30]} b5 {[%emt 0:00:30]} 12. Qc2 {[%emt 0:00:30]} Qb6 {[%emt 0:00:30]} 13. e3 {[%emt 0:00:30]} Rc8 {[%emt 0:00:30]} 14. Qf2 {[%emt 0:05:30]} b4 {[%emt 0:07:30]} 15. Na4 {[%emt 0:01:30]} Qb5 {[%emt 0:01:30]} 16. b3 {[%emt 0:00:30]} Nbd7 {[%emt 0:01:30]} 17. g4 {[%emt 0:05:30]} Rc7 {[%emt 0:09:30]} 18. Bd2 {[%emt 0:11:30]} Rac8 {[%emt 0:06:30]} 19. Rac1 {[%emt 0:00:30]} Ne4 {[%emt 0:19:30]} 20. Bxe4 {[%emt 0:01:30]} dxe4 {[%emt 0:00:00]} 21. Nxd7 {[%emt 0:02:30]} Rxd7 {[%emt 0:00:00]} 22. Rxc8+ {[%emt 0:00:30]} Bxc8 {[%emt 0:00:30]} 23. Rc1 {[%emt 0:00:00]} Qb8 {[%emt 0:02:30]} 24. Nc5 {[%emt 0:10:00]} Bxc5 {[%emt 0:00:30]} 25. Rxc5 {[%emt 0:01:30]} Rc7 {[%emt 0:01:30]} 26. Bxb4 {[%emt 0:03:30]} Rxc5 {[%emt 0:00:00]} 27. Bxc5 {[%emt 0:00:30]} Qb5 {[%emt 0:01:00]} 28. Qc2 {[%emt 0:01:30]} Bb7 {[%emt 0:00:30]} 29. g5 {[%emt 0:02:30]} a5 {[%emt 0:01:30]} 30. a4 {[%emt 0:08:30]} Qd3 {[%emt 0:03:30]} 31. Qxd3 {[%emt 0:00:30]} exd3 {[%emt 0:00:30]} 32. Kf2 {[%emt 0:00:30]} Bd5 {[%emt 0:00:30]} 33. b4 {[%emt 0:00:00]} axb4 {[%emt 0:00:00]} 34. Bxb4 {[%emt 0:00:00]} f5 {[%emt 0:01:00]} 35. gxf6 {[%emt 0:01:30]} gxf6 {[%emt 0:00:00]} 36. e4 {[%emt 0:02:42]} Bxe4 {[%emt 0:00:00]} 37. Ke3 {[%emt 0:00:02]} f5 {[%emt 0:00:30]} 38. d5 {[%emt 0:00:09]} Bxd5 {[%emt 0:00:30]} 39. Kxd3 {[%emt 0:00:24]} Kf7 {[%emt 0:00:00]} 40. Kd4 {[%emt 0:00:11]} Kg6 {[%emt 0:03:00]} 41. a5 {[%emt 0:02:28]} Kh5 {[%emt 0:00:00]} 42. Ke5 {[%emt 0:03:39]} Kg4 {[%emt 0:00:00]} 43. Be7 {[%emt 0:00:03]} Kh3 {[%emt 0:00:30]} 44. Kf6 {[%emt 0:00:08]} Kxh2 {[%emt 0:00:30]} 45. Kg5 {[%emt 0:00:10]} Kg3 {[%emt 0:00:00]} 46. Bd6 {[%emt 0:00:03]} Kf3 {[%emt 0:00:00]} 47. Kh6 {[%emt 0:00:07]} Ke4 {[%emt 0:00:30]} 48. Kxh7 {[%emt 0:00:06]} Bc4 {[%emt 0:00:30]} 49. Kg6 {[%emt 0:00:09]} Kd5 {[%emt 0:00:00]} 50. Be5 {[%emt 0:00:05]} Kc6 {[%emt 0:00:00]} 1/2-1/2

[Event "IM Marmaris Karia X 2019"]
[Site "Marmaris"]
[Date "2019.09.02"]
[Round "10.1"]
[White "Rakhmangulova, Anastasiya"]
[Black "Tarlabasi, Emirhan"]
[Result "1/2-1/2"]
[ECO "B22"]
[WhiteElo "2204"]
[BlackElo "2341"]
[Annotator "ChessBase"]
[PlyCount "53"]
[EventDate "2019.09.02"]
[EventType "schev"]
[EventCountry "TUR"]
[SourceTitle "playchess.com"]
[Source "ChessBase"]
[SourceQuality "1"]
[TimeControl "5400+30"]

1. e4 {[%emt 0:00:30]} e6 {[%emt 0:00:30]} 2. d4 {[%emt 0:00:00]} d5 {[%emt 0:00:00]} 3. Bd3 {[%emt 0:00:00]} c5 {[%emt 0:01:00]} 4. exd5 {[%emt 0:00:00]} exd5 {[%emt 0:00:30]} 5. Nf3 {[%emt 0:00:00]} c4 {[%emt 0:01:30]} 6. Be2 {[%emt 0:00:00]} Bd6 {[%emt 0:00:30]} 7. O-O {[%emt 0:00:00]} Ne7 {[%emt 0:01:30]} 8. b3 {[%emt 0:00:30]} cxb3 {[%emt 0:00:30]} 9. axb3 {[%emt 0:00:00]} O-O {[%emt 0:01:30]} 10. c4 {[%emt 0:00:00]} Nbc6 {[%emt 0:00:30]} 11. Nc3 {[%emt 0:00:30]} Bg4 {[%emt 0:08:30]} 12. c5 {[%emt 0:06:30]} Bb8 {[%emt 0:03:30]} 13. h3 {[%emt 0:07:30]} Bh5 {[%emt 0:05:30]} 14. Rb1 {[%emt 0:06:30]} a6 {[%emt 0:05:30]} 15. b4 {[%emt 0:02:30]} b5 {[%emt 0:06:30]} 16. g3 {[%emt 0:16:30]} Ra7 {[%emt 0:04:30]} 17. Nh4 {[%emt 0:02:30]} Bxe2 {[%emt 0:02:30]} 18. Nxe2 {[%emt 0:00:30]} Qc8 {[%emt 0:02:30]} 19. Kg2 {[%emt 0:05:30]} Nf5 {[%emt 0:01:30]} 20. Nf3 {[%emt 0:09:30]} Re8 {[%emt 0:06:30]} 21. Nc3 {[%emt 0:06:30]} Rd7 {[%emt 0:04:30]} 22. Kh1 {[%emt 0:08:30]} Kh8 {[%emt 0:00:30]} 23. Kg2 {[%emt 0:00:00]} Kg8 {[%emt 0:00:00]} 24. Kh2 {[%emt 0:00:00]} Kh8 {[%emt 0:00:00]} 25. Kg2 {[%emt 0:00:00]} Kg8 {[%emt 0:00:30]} 26. Kh2 {[%emt 0:00:00]} Kh8 {[%emt 0:00:00]} 27. Kg2 {[%emt 0:00:00]} 1/2-1/2

[Event "IM Marmaris Karia X 2019"]
[Site "Marmaris"]
[Date "2019.09.02"]
[Round "10.2"]
[White "Nagy, Gabor"]
[Black "Kizilkus, Akin"]
[Result "1/2-1/2"]
[ECO "E60"]
[WhiteElo "2484"]
[BlackElo "2376"]
[Annotator "ChessBase"]
[PlyCount "28"]
[EventDate "2019.09.02"]
[EventType "schev"]
[EventCountry "TUR"]
[SourceTitle "playchess.com"]
[Source "ChessBase"]
[SourceQuality "1"]
[TimeControl "5400+30"]

1. Nf3 {[%emt 0:00:30]} Nf6 {[%emt 0:00:30]} 2. g3 {[%emt 0:00:00]} g6 {[%emt 0:00:00]} 3. b3 {[%emt 0:00:00]} Bg7 {[%emt 0:00:00]} 4. Bb2 {[%emt 0:00:30]} O-O {[%emt 0:00:00]} 5. c4 {[%emt 0:00:30]} d6 {[%emt 0:01:00]} 6. d4 {[%emt 0:00:00]} e5 {[%emt 0:00:00]} 7. dxe5 {[%emt 0:00:00]} dxe5 {[%emt 0:00:00]} 8. Nfd2 {[%emt 0:21:30]} e4 {[%emt 0:00:30]} 9. e3 {[%emt 0:04:30]} Bg4 {[%emt 0:01:30]} 10. Be2 {[%emt 0:03:30]} Bh3 {[%emt 0:01:30]} 11. Bf1 {[%emt 0:02:30]} Bg4 {[%emt 0:00:30]} 12. Be2 {[%emt 0:00:30]} Bh3 {[%emt 0:00:00]} 13. Bf1 {[%emt 0:00:00]} Bg4 {[%emt 0:00:00]} 14. Be2 {[%emt 0:00:00]} Bh3 {[%emt 0:00:00]} 1/2-1/2

[Event "IM Marmaris Karia X 2019"]
[Site "Marmaris"]
[Date "2019.09.02"]
[Round "10.4"]
[White "Abdulov, Orkhan"]
[Black "Sahin, Ozgun"]
[Result "1/2-1/2"]
[ECO "C68"]
[WhiteElo "2384"]
[BlackElo "2205"]
[Annotator "NA"]
[PlyCount "29"]
[EventDate "2019.09.02"]
[EventType "schev"]
[EventCountry "TUR"]
[SourceTitle "playchess.com"]
[Source "ChessBase"]
[SourceQuality "1"]
[TimeControl "5400+30"]

1. e4 {[%emt 0:03:30]} e5 {[%emt 0:00:30]} 2. Nf3 {[%emt 0:00:30]} Nc6 {[%emt 0:00:00]} 3. Bb5 {[%emt 0:00:00]} a6 {[%emt 0:00:00]} 4. Bxc6 {[%emt 0:00:00]} dxc6 {[%emt 0:00:00]} 5. O-O {[%emt 0:00:30]} Bg4 {[%emt 0:00:00]} 6. h3 {[%emt 0:00:30]} h5 {[%emt 0:00:00]} 7. c3 {[%emt 0:00:00]} Qd3 {[%emt 0:00:00]} 8. hxg4 {[%emt 0:00:00]} hxg4 {[%emt 0:00:30]} 9. Nxe5 {[%emt 0:00:00]} Bd6 {[%emt 0:00:00]} 10. Nxd3 {[%emt 0:00:00]} Bh2+ {[%emt 0:00:00]} 11. Kh1 {[%emt 0:00:30]} Bg3+ {[%emt 0:00:30]} 12. Kg1 {[%emt 0:00:30]} Bh2+ {[%emt 0:00:30]} 13. Kh1 {[%emt 0:00:30]} Bg3+ {[%emt 0:00:30]} 14. Kg1 {[%emt 0:00:30]} Bh2+ {[%emt 0:00:30]} 15. Kh1 {[%emt 0:00:00]} 1/2-1/2

[Event "IM Marmaris Karia X 2019"]
[Site "Marmaris"]
[Date "2019.09.02"]
[Round "10.5"]
[White "Darban, Morteza"]
[Black "Altun, Arda"]
[Result "1-0"]
[ECO "B18"]
[WhiteElo "2283"]
[BlackElo "2151"]
[Annotator "ChessBase"]
[PlyCount "53"]
[EventDate "2019.09.02"]
[EventType "schev"]
[EventCountry "TUR"]
[SourceTitle "playchess.com"]
[Source "ChessBase"]
[SourceQuality "1"]
[TimeControl "5400+30"]

1. e4 {[%emt 0:00:30]} c6 {[%emt 0:00:30]} 2. d4 {[%emt 0:01:30]} d5 {[%emt 0:00:00]} 3. Nd2 {[%emt 0:00:00]} dxe4 {[%emt 0:00:00]} 4. Nxe4 {[%emt 0:00:00]} Bf5 {[%emt 0:00:00]} 5. Nc5 {[%emt 0:00:30]} b6 {[%emt 0:06:00]} 6. Nb3 {[%emt 0:00:00]} Nf6 {[%emt 0:00:30]} 7. Nf3 {[%emt 0:00:00]} e6 {[%emt 0:00:30]} 8. g3 {[%emt 0:00:00]} Nbd7 {[%emt 0:02:30]} 9. Bg2 {[%emt 0:00:00]} Rc8 {[%emt 0:00:30]} 10. O-O {[%emt 0:00:30]} Be7 {[%emt 0:00:00]} 11. Qe2 {[%emt 0:07:30]} O-O {[%emt 0:01:00]} 12. Ne5 {[%emt 0:17:30]} Nd5 {[%emt 0:02:30]} 13. g4 {[%emt 0:14:30]} Bg6 {[%emt 0:00:30]} 14. c4 {[%emt 0:00:30]} Nb4 {[%emt 0:01:30]} 15. Nxg6 {[%emt 0:00:30]} hxg6 {[%emt 0:00:30]} 16. a3 {[%emt 0:00:00]} Na6 {[%emt 0:00:00]} 17. Bf4 {[%emt 0:00:00]} Nf6 {[%emt 0:00:00]} 18. Rad1 {[%emt 0:00:30]} Bd6 {[%emt 0:00:30]} 19. Bxd6 {[%emt 0:16:30]} Qxd6 {[%emt 0:00:30]} 20. g5 {[%emt 0:00:00]} Nh5 {[%emt 0:02:30]} 21. c5 {[%emt 0:00:00]} Qf4 {[%emt 0:02:30]} 22. Qxa6 {[%emt 0:00:30]} b5 {[%emt 0:00:30]} 23. Bxc6 {[%emt 0:11:30]} Qxg5+ {[%emt 0:00:30]} 24. Kh1 {[%emt 0:00:00]} Nf6 {[%emt 0:00:30]} 25. Bg2 {[%emt 0:02:00]} Ng4 {[%emt 0:00:30]} 26. h3 {[%emt 0:00:30]} Qh4 {[%emt 0:01:30]} 27. Kg1 {[%emt 0:00:00]} 1-0